lending/lending_fUSD_20241120
["ID","MTS","AMOUNT","RATE_DAILY","PERIOD"]
[342814516,1732143231150,-677.21,0.00060821,120]
[342814517,1732143231160,-1109.03,0.00060821,120]
[342814518,1732143231169,-2434.04,0.00060821,120]
[342814519,1732143231178,-557.25,0.00060821,120]
[342814520,1732143231188,-1099.32,0.00060821,120]
[342814521,1732143231197,-651.95,0.00060821,120]
[342814522,1732143231207,-4681.73,0.00060821,120]
[342814523,1732143231216,-757.95,0.00060821,120]
[342814524,1732143231227,-986.66,0.00060821,120]
[342814525,1732143231238,-880.48,0.00060821,120]
[342814526,1732143231247,-1502.22,0.00060821,120]
[342814527,1732143231256,-1166.87,0.00060821,120]
[342814528,1732143231266,-500.0,0.00060821,120]
[342814529,1732143231276,-1450.31,0.00060821,120]
[342814530,1732143231286,-548.14,0.00060821,120]
[342814531,1732143231295,-2144.4,0.00060821,120]
[342814532,1732143231305,-14474.38,0.00060821,120]
[342814533,1732143231315,-16729.96,0.00060821,120]
[342814534,1732143231324,-1032.14,0.00060821,120]
[342814535,1732143231334,-500.0,0.00060821,120]
[342814536,1732143231344,-533.88,0.00060821,120]
[342814537,1732143231354,-726.78,0.00060821,120]
[342814538,1732143231364,-2375.8,0.00060821,120]
[342814539,1732143231374,-3517.73,0.00060821,120]
[342814540,1732143231383,-2949.54,0.00060821,120]
[342814541,1732143231393,-680.36,0.00060821,120]
[342814542,1732143231402,-629.45,0.00060821,120]
[342814543,1732143231412,-1835.32,0.00060821,120]
[342814544,1732143231421,-567.38,0.00060821,120]
[342814545,1732143231431,-1270.02,0.00060821,120]
[342814546,1732143231440,-988.11,0.00060821,120]
[342814547,1732143231449,-1077.92,0.00060821,120]
[342814548,1732143231458,-1080.78,0.00060821,120]
[342814549,1732143231467,-730.91,0.00060821,120]
[342814550,1732143231476,-794.46,0.00060821,120]
[342814551,1732143231486,-836.47,0.00060821,120]
[342814552,1732143231496,-877.06,0.00060821,120]
[342814553,1732143231505,-1006.93,0.00060821,120]
[342814554,1732143231515,-873.31,0.00060821,120]
[342814555,1732143231525,-5067.66,0.00060821,120]
[342814556,1732143231535,-1076.47,0.00060821,120]
[342814557,1732143231544,-897.49,0.00060821,120]
[342814558,1732143231554,-615.04,0.00060821,120]
[342814559,1732143231564,-537.82,0.00060821,120]
[342814560,1732143231574,-1213.36,0.00060821,120]
[342814561,1732143231583,-911.56,0.00060821,120]
[342814562,1732143231593,-1001.49,0.00060821,120]
[342814563,1732143231603,-1621.15,0.00060821,120]
[342814564,1732143231613,-1004.9,0.00060821,120]
[342814565,1732143231622,-1363.03,0.00060821,120]
[342814566,1732143231631,-670.6,0.00060821,120]
[342814567,1732143231641,-253.4772765,0.00060821,120]
[342814568,1732143231650,-4519.72,0.00060821,120]
[342814569,1732143231659,-597.02,0.00060821,120]
[342814570,1732143231669,-681.14,0.00060821,120]
[342814571,1732143231678,-1529.3,0.00060821,120]
[342814572,1732143231688,-500.0,0.00060821,120]
[342814573,1732143231697,-5382.48,0.00060821,120]
[342814574,1732143231707,-640.41,0.00060821,120]
[342814575,1732143231716,-2209.36,0.00060821,120]
[342814576,1732143231727,-1045.28,0.00060821,120]
[342814577,1732143231738,-150.0,0.00060828,120]
[342814578,1732143231747,-2505.71,0.00060835,30]
[342814579,1732143231756,-152.0,0.00060848,4]
[342814580,1732143231766,-2394.23,0.00060855,30]
[342814581,1732143231776,-5000.0,0.00060874,30]
[342814582,1732143231785,-674.72531698,0.00060882,120]
[342814583,1732143231795,-245.97244822,0.00060882,120]
[342814584,1732143231804,-300.08402069,0.00060882,120]
[342814585,1732143231813,-150.0,0.00060891,120]
[342814586,1732143231822,-150.0,0.00060915,120]
[342814587,1732143231832,-600.0,0.00060923,42]
[342814588,1732143231842,-309.88,0.00060925,30]
[342814589,1732143231851,-150.0,0.00060945,120]
[342814590,1732143231861,-674.72531698,0.00060949,120]
[342814591,1732143231870,-245.97244822,0.00060949,120]
[342814592,1732143231879,-300.08402069,0.00060949,120]
[342814593,1732143231888,-25000.0,0.00060973,30]
[342814594,1732143231897,-2686.0,0.00060978,86]
[342814595,1732143231907,-121601.46969525,0.0006098,120]
[342814596,1732143231916,-225658.8548293,0.0006098,120]
[342814597,1732143231926,-727881.94990328,0.0006098,120]
[342814598,1732143231939,-709403.11851612,0.0006098,120]
[342814599,1732143231949,-88867.40337607,0.0006098,120]
[342814600,1732143231958,-13375.50692205,0.0006098,120]
[342814601,1732143231968,-50000.0,0.00061,51]
[342814602,1732143231978,-50000.0,0.00061,61]
[342814603,1732143231988,-50000.0,0.00061,41]
[342814604,1732143231997,-16366.65880808,0.00061,60]
[342814605,1732143232008,-1000.0,0.00061,120]
[342814606,1732143232019,-104728.25778444,0.00061,120]
[342814607,1732143232028,-169197.71234266,0.00061,120]
[342814608,1732143232038,-1565.63987478,0.00061,30]
[342814609,1732143232047,-4040.42775883,0.00061,120]
[342814610,1732143232057,-554889.8361376,0.00061,120]
[342814611,1732143232066,-1000.0,0.00061,120]
[342814612,1732143232076,-304.80088476,0.00061,120]
[342814613,1732143232085,-41422.41854292,0.00061,120]
[342814614,1732143232095,-900.0,0.00061,62]
[342814615,1732143232104,-50000.0,0.00061,120]
[342814616,1732143232114,-1500.0,0.00061,120]
[342814617,1732143232123,-1500.0,0.00061,120]
[342814618,1732143232132,-1500.0,0.00061,120]
[342814619,1732143232141,-569.7353472,0.00061,120]
[342814620,1732143232151,-1000000.0,0.00061,120]
[342814621,1732143232160,-1000000.0,0.00061,120]
[342814622,1732143232170,-373.90809045,0.00061,120]
[342814623,1732143232179,-1000.0,0.00061,2]
[342814624,1732143232190,-674.72531698,0.00061016,120]
[342814625,1732143232199,-245.97244822,0.00061016,120]
[342814626,1732143232208,-300.08402069,0.00061016,120]
[342814627,1732143232218,-150.0,0.0006105,120]
[342814628,1732143232228,-150.0,0.00061071,120]
[342814629,1732143232238,-150.0,0.00061077,120]
[342814630,1732143232247,-674.72531698,0.00061084,120]
[342814631,1732143232257,-245.97244822,0.00061084,120]
[342814632,1732143232267,-300.08402069,0.00061084,120]
[342814633,1732143232276,-500.0,0.00061095,120]
[342814634,1732143232285,-536.72982384,0.00061095,120]
[342814635,1732143232295,-500.0,0.00061095,120]
[342814636,1732143232305,-203.91107321,0.00061095,120]
[342814637,1732143232315,-1252.22,0.00061095,120]
[342814638,1732143232325,-500.0,0.00061095,120]
[342814639,1732143232336,-460.9100445,0.00061095,120]
[342814640,1732143232346,-500.0,0.00061095,120]
[342814641,1732143232356,-576.02,0.00061095,120]
[342814642,1732143232366,-771.31,0.00061095,120]
[342814643,1732143232376,-500.0,0.00061095,120]
[342814644,1732143232385,-500.0,0.00061095,120]
[342814645,1732143232394,-500.0,0.00061095,120]
[342814646,1732143232404,-500.0,0.00061095,120]
[342814647,1732143232413,-500.0,0.00061095,120]
[342814648,1732143232423,-500.0,0.00061095,120]
[342814649,1732143232432,-554.38,0.00061095,120]
[342814650,1732143232442,-500.0,0.00061095,120]
[342814651,1732143232452,-601.61,0.00061095,120]
[342814652,1732143232463,-1158.3,0.00061095,120]
[342814653,1732143232472,-500.0,0.00061095,120]
[342814654,1732143232481,-500.0,0.00061095,120]
[342814655,1732143232490,-1261.01,0.00061095,120]
[342814656,1732143232500,-500.0,0.00061095,120]
[342814657,1732143232510,-598.93,0.00061095,120]
[342814658,1732143232520,-500.0,0.00061095,120]
[342814659,1732143232529,-500.0,0.00061095,120]
[342814660,1732143232538,-1006.34,0.00061095,120]
[342814661,1732143232548,-500.0,0.00061095,120]
[342814662,1732143232558,-504.43,0.00061095,120]
[342814663,1732143232568,-500.0,0.00061095,120]
[342814664,1732143232577,-500.0,0.00061095,120]
[342814665,1732143232586,-500.0,0.00061095,120]
[342814666,1732143232599,-500.0,0.00061095,120]
[342814667,1732143232608,-1283.37,0.00061095,120]
[342814668,1732143232618,-949.32878551,0.00061095,120]
[342814669,1732143232627,-588.28882621,0.00061095,120]
[342814670,1732143232638,-701.26,0.00061095,120]
[342814671,1732143232647,-1332.5,0.00061095,120]
[342814672,1732143232657,-761.37,0.00061095,120]
[342814673,1732143232666,-342.88203402,0.00061095,120]
[342814674,1732143232676,-673.21,0.00061095,120]
[342814675,1732143232686,-500.0,0.00061095,120]
[342814676,1732143232695,-570.71,0.00061095,120]
[342814677,1732143232704,-216.90227939,0.00061095,7]
[342814678,1732143232715,-500.0,0.00061095,120]
[342814679,1732143232724,-1648.0638391,0.00061095,120]
[342814680,1732143232736,-688.18,0.00061095,120]
[342814681,1732143232748,-672.29817436,0.00061095,120]
[342814682,1732143232758,-901.91560354,0.00061095,120]
[342814683,1732143232768,-500.0,0.00061095,120]
[342814684,1732143232778,-750.12762554,0.00061095,120]
[342814685,1732143232787,-500.0,0.00061095,120]
[342814686,1732143232796,-874.95,0.00061095,120]
[342814687,1732143232806,-705.26,0.00061095,120]
[342814688,1732143232815,-1584.28,0.00061095,120]
[342814689,1732143232824,-500.0,0.00061095,120]
[342814690,1732143232834,-698.15795672,0.00061095,120]
[342814691,1732143232843,-862.02,0.00061095,120]
[342814692,1732143232854,-710.13,0.00061095,120]
[342814693,1732143232863,-500.0,0.00061095,120]
[342814694,1732143232874,-575.87,0.00061095,120]
[342814695,1732143232884,-533.41,0.00061095,120]
[342814696,1732143232894,-1044.98,0.00061095,120]
[342814697,1732143232903,-550.24433034,0.00061095,120]
[342814698,1732143232913,-838.31115993,0.00061095,120]
[342814699,1732143232922,-500.0,0.00061095,120]
[342814700,1732143232932,-598.39,0.00061095,120]
[342814701,1732143232943,-416.29953316,0.00061095,120]
[342814702,1732143232953,-500.0,0.00061095,120]
[342814703,1732143232962,-876.64,0.00061095,120]
[342814704,1732143232972,-678.29,0.00061095,120]
[342814705,1732143232983,-500.0,0.00061095,120]
[342814706,1732143232993,-853.3,0.00061095,120]
[342814707,1732143233002,-578.08452097,0.00061095,120]
[342814708,1732143233015,-528.91,0.00061095,120]
[342814709,1732143233024,-1058.95434145,0.00061095,120]
[342814710,1732143233034,-500.0,0.00061095,120]
[342814711,1732143233044,-929.3,0.00061095,120]
[342814712,1732143233053,-500.0,0.00061095,120]
[342814713,1732143233064,-516.11564303,0.00061095,120]
[342814714,1732143233074,-500.0,0.00061095,120]
[342814715,1732143233084,-839.52,0.00061095,120]
[342814716,1732143233094,-513.0369657,0.00061095,120]
[342814717,1732143233104,-1582.96927932,0.00061095,120]
[342814718,1732143233114,-818.09,0.00061095,60]
[342814719,1732143233124,-910.7155426,0.00061095,120]
[342814720,1732143233134,-500.0,0.00061095,120]
[342814721,1732143233143,-686.08917703,0.00061095,120]
[342814722,1732143233153,-932.52,0.00061095,120]
[342814723,1732143233163,-718.97771856,0.00061095,120]
[342814724,1732143233173,-500.0,0.00061095,120]
[342814725,1732143233183,-566.78912539,0.00061095,120]
[342814726,1732143233193,-500.0,0.00061095,120]
[342814727,1732143233203,-245.60373527,0.00061095,120]
[342814728,1732143233212,-581.24604725,0.00061095,120]
[342814729,1732143233223,-528.98,0.00061095,120]
[342814730,1732143233232,-500.0,0.00061095,120]
[342814731,1732143233242,-1275.5269696,0.00061095,120]
[342814732,1732143233252,-694.38,0.00061095,120]
[342814733,1732143233261,-558.29015693,0.00061095,120]
[342814734,1732143233278,-512.65,0.00061095,120]
[342814735,1732143233288,-646.61338402,0.00061095,120]
[342814736,1732143233298,-889.75696598,0.00061095,120]
[342814737,1732143233307,-500.0,0.00061095,120]
[342814738,1732143233317,-1844.67869969,0.00061095,120]
[342814739,1732143233327,-1345.27870546,0.00061095,120]
[342814740,1732143233336,-1167.24,0.00061095,120]
[342814741,1732143233345,-577.22,0.00061095,120]
[342814742,1732143233355,-1354.40664134,0.00061095,120]
[342814743,1732143233364,-786.11,0.00061095,120]
[342814744,1732143233374,-1126.73008387,0.00061095,120]
[342814745,1732143233384,-819.5,0.00061095,120]
[342814746,1732143233394,-810.61636397,0.00061095,120]
[342814747,1732143233404,-1630.72152396,0.00061095,120]
[342814748,1732143233414,-500.0,0.00061095,120]
[342814749,1732143233423,-500.0,0.00061095,120]
[342814750,1732143233433,-1539.53550551,0.00061095,120]
[342814751,1732143233442,-1061.30115273,0.00061095,120]
[342814752,1732143233452,-500.0,0.00061095,120]
[342814753,1732143233462,-616.562534,0.00061095,120]
[342814754,1732143233472,-1163.84433138,0.00061095,120]
[342814755,1732143233481,-769.28,0.00061095,120]
[342814756,1732143233491,-500.0,0.00061095,120]
[342814757,1732143233501,-1697.54051659,0.00061095,120]
[342814758,1732143233511,-768.87,0.00061095,120]
[342814759,1732143233524,-500.0,0.00061095,120]
[342814760,1732143233533,-1494.11553808,0.00061095,120]
[342814761,1732143233543,-500.0,0.00061095,120]
[342814762,1732143233552,-583.82,0.00061095,120]
[342814763,1732143233561,-598.71,0.00061095,120]
[342814764,1732143233571,-1417.18033457,0.00061095,120]
[342814765,1732143233581,-500.0,0.00061095,120]
[342814766,1732143233591,-514.93847926,0.00061095,120]
[342814767,1732143233601,-1024.27,0.00061095,120]
[342814768,1732143233610,-580.50093236,0.00061095,120]
[342814769,1732143233619,-583.69,0.00061095,120]
[342814770,1732143233629,-626.00730986,0.00061095,120]
[342814771,1732143233638,-1242.02,0.00061095,120]
[342814772,1732143233648,-195.41349266,0.00061095,120]
[342814773,1732143233658,-1011.03,0.00061095,120]
[342814774,1732143233667,-1642.49152448,0.00061095,7]
[342814775,1732143233678,-500.0,0.00061095,120]
[342814776,1732143233687,-835.6939752,0.00061095,120]
[342814777,1732143233696,-1168.85202774,0.00061095,120]
[342814778,1732143233706,-785.82456036,0.00061095,120]
[342814779,1732143233715,-526.49643851,0.00061095,120]
[342814780,1732143233725,-218.48725643,0.00061095,120]
[342814781,1732143233735,-500.0,0.00061095,120]
[342814782,1732143233745,-1791.8,0.00061095,120]
[342814783,1732143233754,-785.27,0.00061095,120]
[342814784,1732143233765,-1740.08,0.00061095,120]
[342814785,1732143233774,-764.36004839,0.00061095,120]
[342814786,1732143233785,-830.24150743,0.00061095,120]
[342814787,1732143233794,-500.0,0.00061095,120]
[342814788,1732143233804,-937.92183875,0.00061095,120]
[342814789,1732143233814,-500.0,0.00061095,120]
[342814790,1732143233823,-1926.91918621,0.00061095,120]
[342814791,1732143233832,-514.09,0.00061095,120]
[342814792,1732143233842,-1258.97475456,0.00061095,120]
[342814793,1732143233851,-616.01521614,0.00061095,120]
[342814794,1732143233860,-500.0,0.00061095,120]
[342814795,1732143233869,-703.85,0.00061095,120]
[342814796,1732143233878,-739.72841291,0.00061095,120]
[342814797,1732143233889,-2364.26392297,0.00061095,120]
[342814798,1732143233899,-1516.80955329,0.00061095,120]
[342814799,1732143233909,-500.0,0.00061095,120]
[342814800,1732143233919,-506.04818672,0.00061095,120]
[342814801,1732143233928,-1222.73043821,0.00061095,120]
[342814802,1732143233942,-644.13057659,0.00061095,120]
[342814803,1732143233952,-628.65,0.00061095,120]
[342814804,1732143233962,-689.11115324,0.00061095,120]
[342814805,1732143233971,-598.81320337,0.00061095,120]
[342814806,1732143233982,-500.0,0.00061095,120]
[342814807,1732143233993,-500.0,0.00061095,120]
[342814808,1732143234003,-696.97542295,0.00061095,120]
[342814809,1732143234014,-517.94353727,0.00061095,120]
[342814810,1732143234024,-670.7180438,0.00061095,120]
[342814811,1732143234034,-1622.63076932,0.00061095,120]
[342814812,1732143234043,-732.68398692,0.00061095,120]
[342814813,1732143234054,-799.65,0.00061095,120]
[342814814,1732143234064,-3753.00725907,0.00061095,120]
[342814815,1732143234073,-694.9078028,0.00061095,120]
[342814816,1732143234084,-527.8374806,0.00061095,120]
[342814817,1732143234094,-500.0,0.00061095,120]
[342814818,1732143234103,-2754.55215819,0.00061095,120]
[342814819,1732143234113,-821.37,0.00061095,120]
[342814820,1732143234123,-777.06865292,0.00061095,120]
[342814821,1732143234132,-1552.52434713,0.00061095,120]
[342814822,1732143234142,-750.60095789,0.00061095,120]
[342814823,1732143234152,-587.06199523,0.00061095,120]
[342814824,1732143234162,-546.81062494,0.00061095,120]
[342814825,1732143234171,-1410.41803068,0.00061095,120]
[342814826,1732143234181,-289.90495714,0.00061095,120]
[342814827,1732143234190,-622.93762786,0.00061095,120]
[342814828,1732143234200,-1270.46,0.00061095,120]
[342814829,1732143234210,-1078.62590121,0.00061095,120]
[342814830,1732143234223,-2348.95896909,0.00061095,120]
[342814831,1732143234232,-1804.06199472,0.00061095,120]
[342814832,1732143234242,-875.57226401,0.00061095,120]
[342814833,1732143234251,-908.49666633,0.00061095,120]
[342814834,1732143234260,-500.0,0.00061095,120]
[342814835,1732143234271,-643.89629124,0.00061095,120]
[342814836,1732143234280,-1746.12230329,0.00061095,120]
[342814837,1732143234290,-501.22910096,0.00061095,120]
[342814838,1732143234299,-659.64564109,0.00061095,120]
[342814839,1732143234309,-1212.68789743,0.00061095,120]
[342814840,1732143234318,-500.0,0.00061095,120]
[342814841,1732143234328,-500.0,0.00061095,120]
[342814842,1732143234337,-2042.28793378,0.00061095,120]
[342814843,1732143234347,-828.28528454,0.00061095,120]
[342814844,1732143234356,-646.68019131,0.00061095,120]
[342814845,1732143234366,-806.47815534,0.00061095,120]
[342814846,1732143234376,-1287.90242948,0.00061095,120]
[342814847,1732143234386,-1410.98147803,0.00061095,120]
[342814848,1732143234395,-1026.3,0.00061095,120]
[342814849,1732143234405,-624.05232608,0.00061095,120]
[342814850,1732143234415,-654.97,0.00061095,120]
[342814851,1732143234424,-766.33789317,0.00061095,120]
[342814852,1732143234433,-1162.69,0.00061095,120]
[342814853,1732143234443,-1000.64832272,0.00061095,120]
[342814854,1732143234452,-1013.53318054,0.00061095,120]
[342814855,1732143234461,-811.63907081,0.00061095,120]
[342814856,1732143234470,-1475.7,0.00061095,120]
[342814857,1732143234479,-3361.2,0.00061095,120]
[342814858,1732143234489,-634.01447511,0.00061095,120]
[342814859,1732143234498,-1185.44,0.00061095,120]
[342814860,1732143234507,-500.0,0.00061095,120]
[342814861,1732143234518,-838.57936538,0.00061095,120]
[342814862,1732143234528,-1382.65238075,0.00061095,120]
[342814863,1732143234537,-500.0,0.00061095,120]
[342814864,1732143234547,-291.80301744,0.00061095,120]
[342814865,1732143234557,-2198.63302667,0.00061095,120]
[342814866,1732143234566,-534.81,0.00061095,120]
[342814867,1732143234576,-326.26701457,0.00061095,120]
[342814868,1732143234586,-500.0,0.00061095,120]
[342814869,1732143234596,-658.36858069,0.00061095,120]
[342814870,1732143234605,-581.14608449,0.00061095,120]
[342814871,1732143234615,-843.25831785,0.00061095,120]
[342814872,1732143234765,-536.1,0.00061095,120]
[342814873,1732143234777,-1309.27,0.00061095,120]
[342814874,1732143234787,-665.94536826,0.00061095,120]
[342814875,1732143234796,-789.95774399,0.00061095,120]
[342814876,1732143234807,-660.30027878,0.00061095,120]
[342814877,1732143234816,-504.43633528,0.00061095,120]
[342814878,1732143234825,-2411.2532932,0.00061095,120]
[342814879,1732143234835,-773.60012717,0.00061095,120]
[342814880,1732143234844,-3997.6392,0.00061095,120]
[342814881,1732143234853,-556.25,0.00061095,120]
[342814882,1732143234863,-559.83824408,0.00061095,120]
[342814883,1732143234873,-1755.1,0.00061095,120]
[342814884,1732143234882,-1021.59828739,0.00061095,120]
[342814885,1732143234892,-968.81198288,0.00061095,120]
[342814886,1732143234902,-500.0,0.00061095,120]
[342814887,1732143234912,-747.90836526,0.00061095,120]
[342814888,1732143234923,-650.47,0.00061095,120]
[342814889,1732143234934,-552.76032469,0.00061095,120]
[342814890,1732143234946,-500.0,0.00061095,120]
[342814891,1732143234955,-528.71388377,0.00061095,120]
[342814892,1732143234965,-661.29732062,0.00061095,120]
[342814893,1732143234975,-4504.39133809,0.00061095,120]
[342814894,1732143234985,-172.8799256,0.00061095,120]
[342814895,1732143234995,-1414.80487494,0.00061095,120]
[342814896,1732143235005,-1839.15520973,0.00061095,20]
[342814897,1732143235018,-600.15,0.00061095,120]
[342814898,1732143235028,-639.83329729,0.00061095,120]
[342814899,1732143235038,-1229.98,0.00061095,120]
[342814900,1732143235049,-421.72945506,0.00061095,120]
[342814901,1732143235059,-644.12056253,0.00061095,120]
[342814902,1732143235068,-1685.04395423,0.00061095,120]
[342814903,1732143235078,-503.55784451,0.00061095,120]
[342814904,1732143235088,-1838.98,0.00061095,120]
[342814905,1732143235098,-777.39981472,0.00061095,120]
[342814906,1732143235108,-500.0,0.00061095,120]
[342814907,1732143235118,-1088.61491198,0.00061095,120]
[342814908,1732143235128,-3963.93421056,0.00061095,120]
[342814909,1732143235137,-602.76013883,0.00061095,120]
[342814910,1732143235147,-509.12737235,0.00061095,120]
[342814911,1732143235156,-500.0,0.00061095,120]
[342814912,1732143235166,-522.27143801,0.00061095,120]
[342814913,1732143235176,-674.9313359,0.00061095,120]
[342814914,1732143235186,-1573.20250993,0.00061095,120]
[342814915,1732143235197,-500.0,0.00061095,120]
[342814916,1732143235207,-1344.57,0.00061095,120]
[342814917,1732143235216,-695.49193025,0.00061095,120]
[342814918,1732143235226,-993.44702481,0.00061095,120]
[342814919,1732143235236,-5030.92122439,0.00061095,120]
[342814920,1732143235246,-530.48329191,0.00061095,120]
[342814921,1732143235256,-1007.73361563,0.00061095,120]
[342814922,1732143235268,-1508.28581497,0.00061095,120]
[342814923,1732143235278,-500.0,0.00061095,120]
[342814924,1732143235288,-845.69361775,0.00061095,120]
[342814925,1732143235298,-157.94350784,0.00061095,120]
[342814926,1732143235309,-635.60908277,0.00061095,120]
[342814927,1732143235320,-872.55,0.00061095,120]
[342814928,1732143235329,-3671.97587763,0.00061095,120]
[342814929,1732143235340,-1949.37510369,0.00061095,120]
[342814930,1732143235350,-1275.79076698,0.00061095,120]
[342814931,1732143235359,-1300.68630652,0.00061095,120]
[342814932,1732143235370,-873.3302433,0.00061095,120]
[342814933,1732143235380,-656.67,0.00061095,120]
[342814934,1732143235391,-1078.48378054,0.00061095,120]
[342814935,1732143235402,-730.01392929,0.00061095,120]
[342814936,1732143235412,-1015.68378486,0.00061095,120]
[342814937,1732143235422,-562.1011357,0.00061095,120]
[342814938,1732143235431,-2222.8903803,0.00061095,120]
[342814939,1732143235441,-2596.31985493,0.00061095,120]
[342814940,1732143235451,-1080.84204427,0.00061095,120]
[342814941,1732143235461,-569.41361127,0.00061095,120]
[342814942,1732143235471,-852.25481412,0.00061095,120]
[342814943,1732143235481,-999.09,0.00061095,120]
[342814944,1732143235492,-509.42006407,0.00061095,120]
[342814945,1732143235501,-928.64241751,0.00061095,120]
[342814946,1732143235511,-1806.71504246,0.00061095,120]
[342814947,1732143235523,-1129.92673451,0.00061095,120]
[342814948,1732143235533,-2425.3797258,0.00061095,120]
[342814949,1732143235543,-569.99,0.00061095,120]
[342814950,1732143235554,-625.17804306,0.00061095,120]
[342814951,1732143235566,-1019.10455573,0.00061095,120]
[342814952,1732143235576,-2073.78860996,0.00061095,120]
[342814953,1732143235587,-1012.06353522,0.00061095,120]
[342814954,1732143235596,-1257.45967914,0.00061095,120]
[342814955,1732143235606,-1328.5866831,0.00061095,120]
[342814956,1732143235616,-893.20412446,0.00061095,120]
[342814957,1732143235626,-878.78054821,0.00061095,120]
[342814958,1732143235635,-1954.35008687,0.00061095,120]
[342814959,1732143235645,-1107.33946413,0.00061095,120]
[342814960,1732143235654,-5394.74176806,0.00061095,120]
[342814961,1732143235664,-709.28,0.00061095,120]
[342814962,1732143235674,-965.81138913,0.00061095,120]
[342814963,1732143235684,-543.25330081,0.00061095,120]
[342814964,1732143235693,-1317.94804105,0.00061095,120]
[342814965,1732143235705,-594.52161014,0.00061095,120]
[342814966,1732143235715,-1617.16617531,0.00061095,120]
[342814967,1732143235725,-569.41,0.00061095,120]
[342814968,1732143235735,-657.30246245,0.00061095,120]
[342814969,1732143235744,-628.28152468,0.00061095,120]
[342814970,1732143235755,-4865.71676346,0.00061095,120]
[342814971,1732143235764,-1510.98116009,0.00061095,120]
[342814972,1732143235774,-2530.15805569,0.00061095,120]
[342814973,1732143235784,-750.99282668,0.00061095,120]
[342814974,1732143235794,-635.28462889,0.00061095,120]
[342814975,1732143235804,-1489.09,0.00061095,120]
[342814976,1732143235814,-1761.18434645,0.00061095,120]
[342814977,1732143235825,-624.8800034,0.00061095,120]
[342814978,1732143235835,-46265.19891802,0.00061095,120]
[342814979,1732143235845,-644.6550293,0.00061095,120]
[342814980,1732143235855,-881.11853668,0.00061095,120]
[342814981,1732143235865,-4390.23605969,0.00061095,120]
[342814982,1732143235875,-3642.0866691,0.00061095,120]
[342814983,1732143235886,-2046.79611638,0.00061095,120]
[342814984,1732143235896,-519.51091461,0.00061095,120]
[342814985,1732143235906,-1583.15323335,0.00061095,120]
[342814986,1732143235915,-1566.17406994,0.00061095,120]
[342814987,1732143235925,-1540.19335324,0.00061095,120]
[342814988,1732143235938,-1118.01,0.00061095,120]
[342814989,1732143235948,-32183.10405304,0.00061095,120]
[342814990,1732143235958,-2395.6607168,0.00061095,120]
[342814991,1732143235968,-774.90550412,0.00061095,120]
[342814992,1732143235978,-500.0,0.00061095,120]
[342814993,1732143235989,-3019.17774806,0.00061095,120]
[342814994,1732143235999,-300.99882264,0.00061095,120]
[342814995,1732143236011,-1221.78690644,0.00061095,120]
[342814996,1732143236022,-949.36,0.00061095,120]
[342814997,1732143236031,-512.6907645,0.00061095,120]
[342814998,1732143236041,-975.74635202,0.00061095,120]
[342814999,1732143236051,-500.0,0.00061095,120]
[342815000,1732143236061,-1680.93799006,0.00061095,120]
[342815001,1732143236071,-2069.16858991,0.00061095,120]
[342815002,1732143236081,-510.14301438,0.00061095,120]
[342815003,1732143236091,-2386.21112699,0.00061095,120]
[342815004,1732143236101,-2587.94679658,0.00061095,120]
[342815005,1732143236111,-1482.18,0.00061095,120]
[342815006,1732143236121,-1478.81440856,0.00061095,120]
[342815007,1732143236131,-292.56967091,0.00061095,120]
[342815008,1732143236140,-580.34045496,0.00061095,120]
[342815009,1732143236150,-816.60712221,0.00061095,120]
[342815010,1732143236160,-562.17,0.00061095,120]
[342815011,1732143236170,-1753.90099863,0.00061095,120]
[342815012,1732143236180,-10880.27505636,0.00061095,120]
[342815013,1732143236191,-2245.52380725,0.00061095,120]
[342815014,1732143236200,-3622.49410434,0.00061095,120]
[342815015,1732143236211,-502.79626112,0.00061095,120]